Cogmind - Beta 12 X6 @@@ ROGUE MODE // 2023.01.31 @ 14:59:28 Player: Lunatic Blue Result: Self-destructed Performance ------------- Evolutions (2) 1000 Regions Visited (6) 1200 Robots Destroyed (67) 335 Value Destroyed (1851) 1851 Prototype IDs (0) 0 Alien Tech Used (0) 0 Bonus (342) 342 TOTAL SCORE: 4728 Bonus ------- High Alert Combat Kills 66 Follower Combat Kills 102 Entered Garrisons 200 Friendly Fire -26 Cogmind --------- Core Integrity 124/550 Matter 119/300 Energy 160/160 System Corruption 0% Temperature Cool (0) Movement Treading (320) Ox2 Location -8/Garrison Parts ------- > --- POWER (1) -------- Light Nuclear Core > --- PROPULSION (3) --- Light Treads > --- UTILITY (4) ------ High-capacity Storage Unit Machine Analyzer Light Armor Plating > --- WEAPON (3) ------- Light Assault Rifle Minigun > --- INVENTORY (20) --- Advanced Heat Sink Coolant Injector Large Storage Unit Compact Matter Pod (46) Improved Sensor Array Improved Signal Interpreter Targeting Computer Light Armor Plating System Shield Heavy EM Pulse Gun Gauss Cannon Grenade Launcher Improved Datajack Fusion Bomb Trap Fusion Bomb Trap Fusion Bomb Trap Fusion Bomb Trap Peak State ------------ > --- POWER ------------ Light Nuclear Core > --- PROPULSION ------- Light Treads Wheel Compact Wheel > --- UTILITY ---------- Improved Heat Sink High-capacity Storage Unit Seismic Detector Hardened Medium Armor Plating > --- WEAPON ----------- Gauss Cannon Gauss Cannon Gauss Cannon > --- INVENTORY -------- Light Nuclear Core Light Nuclear Core Light Treads Light Treads Light Treads Improved Heat Sink Coolant Injector Large Storage Unit Machine Analyzer Improved Sensor Array Improved Sensor Array Improved Signal Interpreter Targeting Computer Light Armor Plating Heavy EM Pulse Gun Minigun Gauss Cannon Grenade Launcher Improved Datajack Mining Laser [Rating: 30] Favorites ----------- Power Light Nuclear Core Engine Ion Engine Power Core Light Nuclear Core Propulsion Light Treads Treads Light Treads Leg Aluminum Leg Wheel Compact Wheel Utility Improved Heat Sink Device Improved Heat Sink Storage High-capacity Storage Unit Processor Machine Analyzer Protection Light Armor Plating Weapon Gauss Cannon Energy Gun Heavy EM Pulse Gun Energy Cannon Heavy Particle Cannon Ballistic Gun Light Assault Rifle Ballistic Cannon Gauss Cannon Launcher Grenade Launcher Special Weapon Mining Laser Build | -11 -10 -10 -10 -9 -8 -8 ------- Run | Jun Mat Min Exi Min Mat Gar Slots Evolved 4 | . . . . . 4 . Power . | . . . . . . . Propulsion 1 | . . . . . 1 . Utility 2 | . . . . . 2 . Weapon 1 | . . . . . 1 . Parts Attached 50 | . 12 11 1 2 13 11 Power 4 | . 1 1 . . 1 1 Engine 1 | . 1 . . . . . Core 3 | . . 1 . . 1 1 Reactor . | . . . . . . . Propulsion 9 | . 2 1 . . 4 2 Treads 7 | . 1 1 . . 3 2 Leg . | . . . . . . . Wheel 2 | . 1 . . . 1 . Hover . | . . . . . . . Flight . | . . . . . . . Utility 13 | . 2 3 1 . 5 2 Device 3 | . . 2 . . 1 . Storage 3 | . 1 . 1 . 1 . Processor 1 | . . . . . . 1 Hackware . | . . . . . . . Protection 6 | . 1 1 . . 3 1 Artifact . | . . . . . . . Weapon 24 | . 7 6 . 2 3 6 Energy Gun 6 | . 6 . . . . . Energy Cannon 5 | . . 4 . 1 . . Ballistic Gun 5 | . . 1 . . . 4 Ballistic Cannon 4 | . . . . . 3 1 Launcher 3 | . . 1 . 1 . 1 Special Weapon 1 | . 1 . . . . . Impact Weapon . | . . . . . . . Slashing Weapon . | . . . . . . . Piercing Weapon . | . . . . . . . Special Melee Weapon . | . . . . . . . Unidentified Prototypes . | . . . . . . . Parts Lost 16 | . 1 . . . 9 6 Power 3 | . 1 . . . 2 . Propulsion 5 | . . . . . 3 2 Utility 4 | . . . . . 2 2 Weapon 4 | . . . . . 2 2 Highest Loss Streak 8 | . 1 . . . 8 3 To Critical Strikes . | . . . . . . . Average Slot Usage (%) 97 | . 95 99 100 100 98 83 Engine 3 | . 12 6 . . . . Core 8 | . . 7 14 14 8 9 Treads 16 | . 10 14 14 14 22 21 Leg 1 | . 7 . . . . . Wheel 9 | . 10 14 14 14 4 . Device 11 | . . 9 14 14 17 15 Storage 12 | . 15 14 14 14 9 9 Protection 5 | . 8 4 . . 8 2 Energy Gun 5 | . 23 5 . . . . Energy Cannon 11 | . . 19 28 28 . . Ballistic Gun 1 | . 4 2 . . . 7 Ballistic Cannon 7 | . . . . . 25 9 Naked Turns . | . . . . . . . Heaviest Build 76 | 10 36 40 58 58 76 61 Greatest Support 60 | 20 20 16 16 16 60 60 Greatest Overweight (x) 3 | . 2 2 3 3 3 1 Average Overweight (x) 1 | . 1 2 2 3 1 . Largest Inventory Capacity 20 | . 15 15 20 20 20 20 Average Capacity 17 | . 13 15 18 20 20 20 Most Carried 20 | . 15 15 15 20 20 18 Average Carried 16 | . 11 14 15 17 19 16 Final Capacity 20 | 8 15 15 20 20 20 20 Final Carried 20 | 6 15 15 15 20 18 17 Class Distribution -------------------- 66% | Mutant 26% | Tank 6% | Scavenger-Mutant Dominant Class ---------------- Mutant | -10/Materials Mutant | -10/Mines Mutant | -10/Exiles Mutant | -9/Mines Tank | -8/Materials Scavenger-Mutant | -8/Garrison Resources | -11 -10 -10 -10 -9 -8 -8 ----------- Run | Jun Mat Min Exi Min Mat Gar Matter Collected 1684 | 200 156 249 22 40 809 208 Remotely . | . . . . . . . Salvage Created 1982 | . 583 325 . 57 821 196 Parts 118 | . 26 15 . 5 54 18 Haulers Intercepted 4 | . 1 . . . 3 . Recyclers Shooed 1 | . 1 . . . . . Parts Field Recycled . | . . . . . . . Retrieved Matter . | . . . . . . . Parts Self-Destructed . | . . . . . . . Prevented . | . . . . . . . Kills | -11 -10 -10 -10 -9 -8 -8 ------- Run | Jun Mat Min Exi Min Mat Gar Combat Hostiles Destroyed 48 | . 7 10 . 3 20 8 Guns 15 | . 7 3 . . . 5 Cannons 25 | . . 4 . 1 20 . AOE 8 | . . 3 . 2 . 3 Classes Destroyed 11 | . 6 1 . . 4 . Builder 2 | . 1 . . . 1 . Tunneler 3 | . . 1 . 1 1 . Hauler 4 | . 1 . . . 3 . Recycler 2 | . 2 . . . . . Mechanic 2 | . . . . . 2 . Operator 1 | . . . . . 1 . Watcher 5 | . 3 . . . 2 . Swarmer 14 | . 2 3 . 2 2 5 Grunt 25 | . 5 7 . . 10 3 Duelist 1 | . . . . . 1 . Sentry 7 | . . . . . 7 . Best Kill Streak 7 | . 4 3 . 2 7 3 Combat Bots Only 7 | . 3 3 . 2 7 3 Max Kills in Single Turn 3 | . 1 1 . 2 2 3 Gunslinging . | . . . . . . . Exploded 3 | . . 1 . 2 . 3 Melee . | . . . . . . . Uniques/NPCs Destroyed 1 | . . . . 1 . . YI-UF0 (-9/Mines) Combat | -11 -10 -10 -10 -9 -8 -8 -------- Run | Jun Mat Min Exi Min Mat Gar Damage Taken 3475 | . 470 383 . 155 1786 681 Core 591 | . 60 94 . 11 309 117 Absorbed by Shields . | . . . . . . . Core Remaining (%) 67 | 100 . . . 34 . . Volleys Fired 154 | . 41 29 . 6 55 23 Largest 3 | . 2 2 . 2 3 2 Hottest 144 | . 110 135 . 135 144 96 Shots Fired 342 | . 79 47 . 10 162 44 Gun 128 | . 78 11 . . . 39 Cannon 207 | . . 33 . 8 162 4 Launcher 6 | . . 3 . 2 . 1 Special 1 | . 1 . . . . . Kinetic 219 | . 11 9 . . 156 43 Thermal 61 | . 14 33 . 8 6 . Explosive 6 | . . 3 . 2 . 1 Electromagnetic 56 | . 54 2 . . . . Robot Hit Streak 16 | . 7 6 . 6 8 16 Robot Miss Streak 6 | . 6 4 . 1 4 2 Penetration Max 1 | . . . . . 1 . Secondary Targets 1 | . 1 . . . . . Max Gunslinging Chain 1 | . 1 . . . . . Shots Hit Robots 201 | . 48 25 . 7 87 34 Core Hits 89 | . 18 13 . 5 35 18 Critical Kills 1 | . . 1 . . . . Critical Parts Destroyed . | . . . . . . . Critical Strikes 16 | . 1 2 . . 13 . Destroy 1 | . . 1 . . . . Blast 13 | . . . . . 13 . Corrupt 2 | . 1 1 . . . . Melee Attacks . | . . . . . . . Impact . | . . . . . . . Slashing . | . . . . . . . Piercing . | . . . . . . . Sneak Attacks . | . . . . . . . Combat Hostiles . | . . . . . . . Follow-up Attacks . | . . . . . . . Damage Inflicted 5023 | . 793 694 . 290 2715 531 Guns 1145 | . 759 87 . . . 299 Cannons 3412 | . . 475 . 143 2715 79 Explosions 417 | . 34 132 . 147 . 104 Melee . | . . . . . . . Ramming 49 | . . . . . . 49 Kinetic 3175 | . 60 70 . . 2667 378 Thermal 808 | . 142 475 . 143 48 . Explosive 383 | . . 132 . 147 . 104 Electromagnetic 608 | . 591 17 . . . . Impact . | . . . . . . . Slashing . | . . . . . . . Piercing . | . . . . . . . Highest Corruption 1 | . 1 1 1 1 . . Average Corruption 1 | . 1 1 1 1 . . Corruption Purged . | . . . . . . . Corruption Blocked . | . . . . . . . Effects 18 | . 6 5 4 3 . . Message Errors 1 | . . . . 1 . . Matter Fused 7 | . 3 2 2 . . . Heat Flow Errors 1 | . . 1 . . . . Energy Discharges 1 | . . . . 1 . . Data Loss (minor) 5 | . 2 1 1 1 . . Misfires 1 | . 1 . . . . . Alerts 2 | . . 1 1 . . . Overload Shots . | . . . . . . . Overflow Damage 35 | . . . . 7 27 1 Projectiles 31 | . . . . 3 27 1 Explosions 4 | . . . . 4 . . Melee . | . . . . . . . Knockbacks 21 | . . . . . 17 4 Impact 1 | . . . . . . 1 Kinetic 20 | . . . . . 17 3 Secondary . | . . . . . . . Self-Inflicted Damage 11 | . . . . 11 . . Shots 2 | . . . . 2 . . Rammed 15 | . . . . . . 15 Targets Rammed 15 | . . . . . . 15 Kicked . | . . . . . . . Crushed . | . . . . . . . Highest Temperature 412 | . 412 375 . 96 333 18 Average Temperature 115 | . 128 156 . 39 96 4 Received Heat Transfer 1446 | . 150 213 . 30 747 306 Effects 8 | . 2 5 . . 1 . Shutdowns 1 | . 1 . . . . . Energy Bleed 2 | . . 1 . . 1 . Interference 3 | . 1 2 . . . . Matter Decay 1 | . . 1 . . . . Short Circuit 1 | . . 1 . . . . Siege Activations . | . . . . . . . Robots Corrupted 2 | . 2 . . . . . Combat Hostiles . | . . . . . . . Parts Fried 4 | . 4 . . . . . Impact Corruptions . | . . . . . . . Robots Melted . | . . . . . . . Combat Hostiles . | . . . . . . . Parts Melted 2 | . . 2 . . . . Heat Transferred 1386 | . 350 740 . 222 74 . Parts Sabotaged . | . . . . . . . Parts Stolen . | . . . . . . . Parts Stripped . | . . . . . . . Power Chain Reactions 1 | . 1 . . . . . Missiles Intercepted . | . . . . . . . Alert | -11 -10 -10 -10 -9 -8 -8 ------- Run | Jun Mat Min Exi Min Mat Gar Peak Influence 470 | . 327 218 . 75 470 395 Initial 260 | . . 77 . . 24 260 Average 175 | . 83 128 . 50 309 308 Maximum Alert Level 2 | . 1 1 . . 2 1 Low Security (%) 59 | . 95 81 . 100 10 . Level 1 32 | . 4 18 . . 63 100 Level 2 7 | . . . . . 25 . Level 3 . | . . . . . . . Level 4 . | . . . . . . . Level 5 . | . . . . . . . High Security . | . . . . . . . Max Security . | . . . . . . . Squads Dispatched 4 | . . 1 . . 3 . Investigation 1 | . . 1 . . . . Extermination . | . . . . . . . Reinforcement 2 | . . . . . 2 . Assault . | . . . . . . . Garrison 1 | . . . . . 1 . Intercept . | . . . . . . . Searches Triggered . | . . . . . . . Construction Impeded 1 | . . . . . 1 . Haulers Reinforced . | . . . . . . . Active Scanning Responses . | . . . . . . . Cargo Convoy Interrupts . | . . . . . . . Stealth | -11 -10 -10 -10 -9 -8 -8 --------- Run | Jun Mat Min Exi Min Mat Gar Distress Signals 4 | . 1 . . . 3 . Communications Jammed . | . . . . . . . Distress Signals . | . . . . . . . Times Spotted 70 | . 12 12 . 6 31 9 Peak Tracking Total 8 | . 4 3 . 3 8 3 Tactical Retreats 2 | . . 1 . 1 . . Traps | -11 -10 -10 -10 -9 -8 -8 ------- Run | Jun Mat Min Exi Min Mat Gar Traps Triggered 2 | . 1 . . . . 1 Indirectly . | . . . . . . . Trap Hack Attempts . | . . . . . . . Triggered . | . . . . . . . Disarmed . | . . . . . . . Reprogrammed . | . . . . . . . Reused . | . . . . . . . Traps Extracted . | . . . . . . . Installed . | . . . . . . . Triggered . | . . . . . . . Most Traps Carried 5 | . . . . 5 5 4 Machines | -11 -10 -10 -10 -9 -8 -8 ---------- Run | Jun Mat Min Exi Min Mat Gar Machines Disabled 7 | . . 1 . . 4 2 Max in Single Turn 1 | . . 1 . . 1 1 Machines Repaired . | . . . . . . . Machines Sabotaged . | . . . . . . . Overloaded Fab Kills . | . . . . . . . Hacking | -11 -10 -10 -10 -9 -8 -8 --------- Run | Jun Mat Min Exi Min Mat Gar Machines Accessed 14 | . 7 1 1 1 4 . Terminals 10 | . 6 . . 1 3 . Fabricators . | . . . . . . . Repair Stations . | . . . . . . . Recycling Units 1 | . 1 . . . . . Scanalyzers . | . . . . . . . Garrison Access 1 | . . . . . 1 . Total Hacks 37 | . 22 1 1 3 10 . Successful 18 | . 12 1 1 . 4 . Failed 19 | . 10 . . 3 6 . Catastrophic 1 | . . . . . 1 . Database Lockouts . | . . . . . . . Manual 13 | . 10 . . . 3 . Terminals 31 | . 20 . . 3 8 . Fabricators . | . . . . . . . Repair Stations . | . . . . . . . Recycling Units 2 | . 2 . . . . . Scanalyzers . | . . . . . . . Garrison Access 2 | . . . . . 2 . Terminal Hacks 10 | . 6 1 1 . 2 . Record 1 | . . . 1 . . . Open Door 1 | . . 1 . . . . Terminal Index 1 | . 1 . . . . . Alert Level 1 | . . . . . 1 . Unreport Threat 2 | . 2 . . . . . Locate Traps 1 | . 1 . . . . . Maintenance Status 1 | . . . . . 1 . Hauler Manifests 1 | . 1 . . . . . Zone Layout 1 | . 1 . . . . . Fabricator Hacks . | . . . . . . . Repair Station Hacks . | . . . . . . . Recycling Unit Hacks 1 | . 1 . . . . . Retrieve Components 1 | . 1 . . . . . Scanalyzer . | . . . . . . . Garrison Access Hacks 1 | . . . . . 1 . Unlock Access 1 | . . . . . 1 . Unauthorized Hacks 6 | . 5 . . . 1 . Terminals 5 | . 4 . . . 1 . Assimilate 1 | . . . . . 1 . Botnet 3 | . 3 . . . . . Operators 1 | . 1 . . . . . Fabricators . | . . . . . . . Repair Stations . | . . . . . . . Recycling Units 1 | . 1 . . . . . Mask 1 | . 1 . . . . . Scanalyzers . | . . . . . . . Garrison Access . | . . . . . . . Data Cores Recovered . | . . . . . . . Used . | . . . . . . . Hacking Detections 10 | . 6 . . 1 3 . Full Trace Events . | . . . . . . . Feedback Events . | . . . . . . . Feedback Blocked . | . . . . . . . Robot Schematics Acquired . | . . . . . . . Robots Built . | . . . . . . . Authchips . | . . . . . . . Time . | . . . . . . . Total Robot Build Rating . | . . . . . . . Part Schematics Acquired . | . . . . . . . Parts Built . | . . . . . . . Authchips . | . . . . . . . Time . | . . . . . . . Total Part Build Rating . | . . . . . . . Parts Repaired . | . . . . . . . Time . | . . . . . . . Parts Recycled . | . . . . . . . Recycled Matter . | . . . . . . . Retrieved Matter . | . . . . . . . Retrieved Components 7 | . 7 . . . . . Parts Scanalyzed . | . . . . . . . Part Schematics Acquired . | . . . . . . . Parts Damaged . | . . . . . . . Bothacking | -11 -10 -10 -10 -9 -8 -8 ------------ Run | Jun Mat Min Exi Min Mat Gar Used RIF Installer . | . . . . . . . Robots Hacked . | . . . . . . . Non-combat . | . . . . . . . Combat . | . . . . . . . Robot Hacks Applied . | . . . . . . . Relay Couplers Released . | . . . . . . . Fabnet Peak Effective % . | . . . . . . . Robots Rewired . | . . . . . . . Allies Hacked . | . . . . . . . Hacks Repelled . | . . . . . . . Allies | -11 -10 -10 -10 -9 -8 -8 -------- Run | Jun Mat Min Exi Min Mat Gar Total Allies 3 | . . . . 3 . . Largest Group 3 | . . . . 3 2 . Highest-Rated Group 40 | . . . . 40 32 . Highest-Rated Ally 16 | . . . . 16 16 . Total Orders . | . . . . . . . Ally Attacks 24 | . . . . 5 19 . Total Damage 307 | . . . . 63 244 . Kills 5 | . . . . 2 3 . Allies Corrupted . | . . . . . . . Allies Melted . | . . . . . . . Intel | -11 -10 -10 -10 -9 -8 -8 ------- Run | Jun Mat Min Exi Min Mat Gar Robot Analysis Total . | . . . . . . . Derelict Logs Recovered 1 | . . 1 . . . . Drone Launches . | . . . . . . . Drone Recoveries . | . . . . . . . Exploration | -11 -10 -10 -10 -9 -8 -8 ------------- Run | Jun Mat Min Exi Min Mat Gar Turns Passed 3990 | . 780 791 406 625 1102 286 Spaces Moved 2206 | 1 486 493 292 413 432 89 Core . | . . . . . . . Treads 388 | . . . . . 299 89 Legs 134 | 1 133 . . . . . Wheels 1684 | . 353 493 292 413 133 . Hover . | . . . . . . . Flight . | . . . . . . . Fastest Speed 115 | 120 115 130 130 145 120 160 Average Speed 149 | 120 126 130 138 145 202 191 Slowest Speed 320 | 120 130 130 145 145 320 240 Overloaded Moves . | . . . . . . . Propulsion Burnouts . | . . . . . . . Robots Hopped . | . . . . . . . Cave-ins Triggered . | . . . . . . . Exploration Rate (%) 50 | 2 60 93 60 87 34 18 Regions Visited 6 Branch Regions 3 Pre-discovered Areas 2 | . . 1 1 . . . Known Exits Taken 1 | . . . . . 1 . Unknown Exits Taken 5 | 1 1 1 1 1 . . Scrap Searched 2 | . . 1 . 1 . . Spaces Dug 9 | . 1 8 . . . . Terrain Destroyed 140 | . 3 35 . 18 84 . Melee . | . . . . . . . Projectile 98 | . 1 11 . 2 84 . AOE 42 | . 2 24 . 16 . . Terrain Rammed . | . . . . . . . Walls Destroyed . | . . . . . . . Machines Disabled . | . . . . . . . Actions | -11 -10 -10 -10 -9 -8 -8 --------- Run | Jun Mat Min Exi Min Mat Gar Total 2586 | . 576 598 293 428 544 147 Wait 72 | . 4 54 . 3 11 . Move 2201 | . 485 492 291 412 432 89 Hop . | . . . . . . . Pick Up 54 | . 22 4 . 5 17 6 Fast Attach 9 | . 1 3 . . 3 2 Attach 20 | . 3 1 . . 8 8 Detach 2 | . . . . . . 2 Swap 21 | . 8 7 1 2 2 1 Drop 38 | . 12 8 1 . 16 1 Fire 154 | . 41 29 . 6 55 23 Melee . | . . . . . . . Ram . | . . . . . . . Kick . | . . . . . . . Crush 15 | . . . . . . 15 Escape Stasis . | . . . . . . . Rewire . | . . . . . . . Trap . | . . . . . . . Miscellaneous . | . . . . . . . Route ------- -11/Junkyard -10/Materials (discovered 3 exits: [*Mat x2] / *Min) -10/Mines (discovered 2 exits: [*Mat] / *Exi) -10/Exiles (discovered 2 exits: *Min x2) -9/Mines -8/Materials -8/Garrison (discovered 1 exit: [*Mat]) History --------- Turn | Location | Event 1 | -11/Junkyard | Discovered new exit (range 0) 1 | -11/Junkyard | Entered Materials 216 | -10/Materials | Discovered new exit (range 8) 302 | -10/Materials | Discovered new exit (range 10) 307 | -10/Materials | Build established: Mutant 697 | -10/Materials | Discovered new exit (range 3) 781 | -10/Materials | Entered Mines 813 | -10/Mines | Met a Derelict bent on vengeance 926 | -10/Mines | Met a Derelict shopkeep closing up shop 983 | -10/Mines | Learned location of Zion (-6) 1080 | -10/Mines | Core integrity fell below 50% 1463 | -10/Mines | Discovered new exit (range 14) 1567 | -10/Mines | Deemed a non-threat by the Exiles lab entrance 1567 | -10/Mines | Discovered new exit (range 5) 1572 | -10/Mines | Entered Exiles 1592 | -10/Exiles | Discovered new exit (range 15) 1605 | -10/Exiles | Met 8R-AWN 1627 | -10/Exiles | Met EX-HEX 1662 | -10/Exiles | Met EX-BIN 1679 | -10/Exiles | Met EX-DEC 1959 | -10/Exiles | Discovered new exit (range 14) 1978 | -10/Exiles | Entered Mines 1983 | -9/Mines | Assisted by bots powering up and referring to "LRC-V3" 2275 | -9/Mines | Found a hidden stash of uninstalled traps 2395 | -9/Mines | Destroyed YI-UF0 2596 | -9/Mines | Discovered new exit (range 6) 2603 | -9/Mines | Entered Materials 2603 | -8/Materials | Accompanied by 2 allies 2603 | -8/Materials | Evolved 4 slots: Propulsion x1, Utility x2, Weapon x1 2668 | -8/Materials | Garrison activated, responded to threat 2877 | -8/Materials | Destroyed 7 combat bots 2898 | -8/Materials | Build established: Tank 3676 | -8/Materials | Core integrity fell below 50% 3705 | -8/Materials | Identified exit to Garrison 3705 | -8/Materials | Entered Garrison 3732 | -8/Garrison | Lost 8 parts (1p3n2u2w) 3862 | -8/Garrison | Triggered checkpoint 3900 | -8/Garrison | Triggered checkpoint 3961 | -8/Garrison | Lost 3 parts (1n1u1w) 3971 | -8/Garrison | Discovered new exit (range 5) 3991 | -8/Garrison | Self-destructed Last Messages --------------- 03868_ Acquired 6 matter. 03870_ Acquired 3 matter. 03872_ Acquired 6 matter. 03876_ Acquired Lgt. Assault Rifle. 03912_ G-47 Trooper destroyed. 03912_ Critical hit (Burn: +37). 03914_ Seismic Detector destroyed. 03920_ Lgt. Treads destroyed. 03930_ Lgt. Assault Rifle destroyed. 03931_ G-47 Trooper destroyed. 03936_ Acquired 42 matter. 03939_ Acquired 55 matter. 03952_ G-47 Trooper destroyed. 03954_ Acquired 55 matter. 03971_ EXIT=FOUND 03979_ S-10 Pest springs to life. 03983_ S-10 Pest destroyed. 03983_ Imp. Heat Sink destroyed. 03987_ Lgt. Treads destroyed. 03988_ S-10 Pest destroyed. Map ----- +----------------------------------------------------+ | ?????????????????????????????????????? | | ?????????????????????????????????????? | | ?????????????????????????????????????? | | ?????????????????????????????????????? | | ?????????????????????????????????????? | | ?????????????????????????????????????? | | ?????????????????????????????????????? | | ?????????????????????????????????????? | | ?????????????????????????????????????? | | ?????????????????????????????????????? | | ?????????????????????????????????????? | | ?????????????????????????????????????? | | ?????????????????????????????????????? | | ?????????????????????????????????????? | | ?????????????????????????????????????? | | ?????????????????????????????????????? | | ?????????????????????????????????????? | | ?????????????????????????????????????? | | ?????????????????????????????????????? | | ?????????????????????????????????????? | | ?????????????????????????????????????? | | ?????????????????????????????????????? | | ?#####????????????????##########?????? | | ? #???????????????# *%#?????? | | ?? #?###???????????# <=s#?????? | | ?? #? #???????????# @ %=#?????? | | ??# #?# #???????????# #######?????? | | ??# #?# #???????????# #???????????? | | ??# #?# #???????????# ###?????????? | | ??# #?# #???????????# #?????????? | | ??# ###=##??#######?# #?????????? | | ??# ## #??#"""""#?#=* #?????????? | | ??# ##* ##### ####== #?????????? | | ??# = == ###?????????? | | ??# [*#???????????? | | ??# ################# #???????????? | | ??# #???????????????# #???????????? | | ??# #?############??# #???????????? | | ??# #?# " " " #??####???????????? | | ??# #?# " "??????????????????? | | ??# ### ""#?????????????????? | | ??# ## ! #?????????????????? | | ??# &# """#?????????????????? | | ??# ! & &#?????????????????? | | ??# ## && #?????????????????? | | ??# ## # ""#?????????????????? | | ??# ## #?????????????????? | | ??# ### """" """"#?????????????????? | | ??# #?# "??" "?????????????????????? | | ??# #?# "??" "?????????????????????? | +----------------------------------------------------+ Best States ------------- Heat Dissipation 45 Energy Generation 14 Energy Capacity 250 Matter Stores 300 Matter Capacity 300 Sight Range 16 Terrain Scan Density 10 Armor Coverage 225 Evasion (%) 55 Recoil Reduction 3 Item Schematics ----------------- None Robot Schematics ------------------ None Fabricated ------------ Nothing Alien Tech Used ----------------- None Achievements -------------- None Challenges ------------ None Game ------ Seed HoverScatterFacilitator Manual? 0 Play Time 00:27:16 Cumulative 207.1 hours Start 2023.01.31 @ 14:33:56 End 2023.01.31 @ 14:59:28 Sessions 1 Manual Loads 0 Difficulty Rogue Special Mode None Game No. 280 Rogue 280 Adventurer 0 Explorer 0 Win Type - Total 5 Types 1/0/3/0/0/0/1/0/0 Lore% 77 Gallery% 84 Achievement% 65 Wizard Run 0 Options --------- ASCII 0 Keyboard 0 Movement Numpad Keybinds 0 Fullscreen 1 Font 18/SmallcapsGlow Map View 76x50 Tactical HUD 1 Map Filters NONE Filters NONE Steam 1 RUN: 61629bd0-9d45-4945-8575-1feb405038f0